bitfinex/quotes_BTCUSD_20250620
["timestamp","ask_amount","ask_price","bid_price","bid_amount"]
[1750433281441,0.43265553,104460.0,104450.0,0.44447993]
[1750433281872,0.39432204,104460.0,104450.0,0.44447993]
[1750433282088,0.40389453,104460.0,104450.0,0.44447993]
[1750433282310,0.41446729,104460.0,104450.0,0.41257993]
[1750433282552,0.01914708,104450.0,104440.0,0.24074652]
[1750433282787,0.19149751,104440.0,104430.0,0.27436641]
[1750433283062,0.19149751,104440.0,104430.0,0.37266641]
[1750433283063,0.01914883,104440.0,104430.0,0.37266641]
[1750433283313,0.01914873,104440.0,104430.0,0.37266641]
[1750433283540,0.03829729,104440.0,104430.0,0.37384641]
[1750433283794,0.27805476,104440.0,104430.0,0.37066641]
[1750433284027,0.40740778,104440.0,104430.0,0.37066641]
[1750433284296,0.34,104440.0,104430.0,0.40424641]
[1750433284532,0.35914846,104440.0,104430.0,0.43634641]
[1750433284983,0.35914846,104440.0,104430.0,0.43834641]
[1750433285208,0.37829756,104440.0,104430.0,0.40824641]
[1750433285924,0.37829756,104440.0,104430.0,0.37584641]
[1750433286813,0.36872287,104440.0,104430.0,0.37584641]
[1750433287032,0.36872287,104440.0,104430.0,0.40834641]
[1750433287692,0.37829747,104440.0,104430.0,0.40834641]
[1750433287906,0.38787216,104440.0,104430.0,0.40834641]
[1750433288784,0.36872287,104440.0,104430.0,0.40834641]
[1750433289431,0.34957423,104440.0,104430.0,0.44124641]
[1750433289643,0.34,104440.0,104430.0,0.44124641]
[1750433290109,0.02872058,104450.0,104440.0,0.22022102]
[1750433290300,0.02872058,104450.0,104440.0,0.25153102]
[1750433291254,0.0574844,104450.0,104440.0,0.25153102]
[1750433291482,0.06705817,104450.0,104440.0,0.25153102]
[1750433292194,0.06705808,104450.0,104440.0,0.25153102]
[1750433292650,0.26811175,104450.0,104440.0,0.24195679]
[1750433292877,0.25853825,104450.0,104440.0,0.2214312]
[1750433293352,0.6819623,104450.0,104440.0,0.2202212]
[1750433293580,0.65324117,104450.0,104440.0,0.20107229]
[1750433293813,5.70324117,104450.0,104440.0,0.15996]
[1750433294470,5.69366722,104450.0,104440.0,0.15996]
[1750433295754,0.02872617,104430.0,104420.0,0.29544916]
[1750433295985,0.00957496,104430.0,104420.0,0.45540916]
[1750433296212,0.01914928,104440.0,104430.0,0.28464211]
[1750433296447,0.21064679,104440.0,104430.0,0.28585211]
[1750433296665,0.01914928,104440.0,104430.0,0.28585211]
[1750433297110,0.02872369,104440.0,104430.0,0.28585211]
[1750433297338,0.37829784,104440.0,104430.0,0.28585211]
[1750433297551,0.56022148,104440.0,104430.0,0.27627696]
[1750433297779,0.56022148,104440.0,104430.0,0.28785229]
[1750433298007,0.55064698,104440.0,104430.0,0.27827696]
[1750433298530,0.55064698,104440.0,104430.0,0.2878522]
[1750433298744,0.36872324,104440.0,104430.0,0.29742735]
[1750433298973,0.56979553,104440.0,104430.0,0.002]
[1750433299198,0.56979553,104440.0,104430.0,0.004]
[1750433299199,0.55064698,104440.0,104430.0,0.004]
[1750433299420,0.55064698,104440.0,104430.0,0.19551584]
[1750433299643,0.55064698,104440.0,104430.0,0.24887723]
[1750433299868,0.36872324,104440.0,104430.0,0.3007278]
[1750433300080,0.56979553,104440.0,104430.0,0.29115265]
[1750433300329,0.62965085,104440.0,104430.0,0.004]
[1750433300552,0.62965085,104440.0,104430.0,0.35547584]
[1750433300770,0.62965085,104440.0,104430.0,0.36626154]
[1750433300982,0.62965085,104440.0,104430.0,0.35668584]
[1750433300983,0.62007616,104440.0,104430.0,0.35668584]
[1750433301201,0.62007616,104440.0,104430.0,0.36626163]
[1750433301412,0.54107229,104440.0,104430.0,0.37583733]
[1750433302285,0.54107229,104440.0,104430.0,0.16517]
[1750433302727,0.54107229,104440.0,104430.0,0.16396]
[1750433303155,0.54107229,104440.0,104430.0,0.35547584]
[1750433304043,0.54107229,104440.0,104430.0,0.36505154]
[1750433304277,0.62049384,104440.0,104430.0,0.37462714]
[1750433304733,0.61091906,104440.0,104430.0,0.36505154]
[1750433304945,0.61091906,104440.0,104430.0,0.37462705]
[1750433305159,0.61091906,104440.0,104430.0,0.36505154]
[1750433305594,0.61091906,104440.0,104430.0,0.35547584]
[1750433305818,5.66091906,104440.0,104430.0,0.004]
[1750433306064,5.82089799,104440.0,104430.0,0.004]
[1750433306501,5.84359001,104440.0,104430.0,0.002]
[1750433306993,5.81119001,104440.0,104430.0,0.002]
[1750433307209,5.68361108,104440.0,104430.0,0.20109163]
[1750433307426,5.58149751,104440.0,104430.0,0.20230163]
[1750433307651,5.58149751,104440.0,104430.0,0.00121]
[1750433307652,5.58249751,104440.0,104430.0,0.00121]
[1750433307870,0.20109163,104430.0,104420.0,0.43605713]
[1750433308094,0.54109163,104430.0,104420.0,0.40405713]
[1750433308321,0.35915093,104430.0,104420.0,0.42320934]
[1750433308531,0.35915038,104430.0,104420.0,0.45520934]
[1750433308959,0.02872598,104430.0,104420.0,0.45520934]
[1750433309182,0.0191502,104430.0,104420.0,0.45520934]
[1750433309395,0.02872553,104430.0,104420.0,0.45520934]
[1750433309833,0.01915011,104430.0,104420.0,0.45520934]
[1750433310044,0.03830113,104430.0,104420.0,0.45520934]
[1750433310663,0.03830095,104430.0,104420.0,0.45520934]
[1750433310892,0.02872553,104430.0,104420.0,0.45520934]
[1750433311458,0.03830159,104430.0,104420.0,0.44563319]
[1750433312501,0.22981743,104430.0,104410.0,0.20112942]
[1750433312702,0.01915295,104420.0,104410.0,0.40297713]
[1750433312925,0.01915203,104420.0,104410.0,0.41255411]
[1750433313108,0.02872837,104420.0,104410.0,0.44545411]
[1750433313319,0.01915084,104430.0,104420.0,0.22026337]
[1750433313530,0.01915084,104430.0,104420.0,0.25257346]
[1750433313531,0.29486256,104430.0,104420.0,0.25257346]
[1750433313732,0.2948633,104430.0,104420.0,0.20232079]
[1750433313946,0.29495341,104430.0,104420.0,0.22147374]
[1750433314159,0.29495341,104430.0,104420.0,0.21189731]
[1750433314375,0.09386178,104430.0,104420.0,0.22147374]
[1750433314588,0.03839234,104430.0,104420.0,0.27092633]
[1750433314801,0.02881573,104430.0,104420.0,0.27092578]
[1750433315023,0.34966507,104430.0,104420.0,0.30392578]
[1750433315236,0.34009011,104430.0,104420.0,0.30392578]
[1750433315449,0.34966516,104430.0,104420.0,0.30392578]
[1750433315875,0.34009011,104430.0,104420.0,0.30392578]
[1750433316078,0.34966516,104430.0,104420.0,0.30592578]
[1750433316286,0.34966516,104430.0,104420.0,0.30792578]
[1750433316493,0.34009011,104430.0,104420.0,0.30792578]
[1750433316711,9.011e-05,104430.0,104420.0,0.30792578]
[1750433317139,9.011e-05,104430.0,104420.0,0.40320471]
[1750433323863,9.011e-05,104430.0,104420.0,0.40120471]
[1750433324298,9.011e-05,104430.0,104420.0,0.41120471]
[1750433325371,9.011e-05,104430.0,104420.0,0.40920471]
[1750433325684,9.011e-05,104430.0,104420.0,0.42320471]
[1750433326582,9.011e-05,104430.0,104420.0,0.43774556]
[1750433327067,9.011e-05,104430.0,104420.0,0.48774556]
[1750433328003,9.011e-05,104430.0,104420.0,0.46374556]
[1750433328226,9.011e-05,104430.0,104420.0,0.50074556]
[1750433328476,9.011e-05,104430.0,104420.0,1.41700556]
[1750433328708,0.2711,104440.0,104430.0,0.44788296]
[1750433328923,0.2711,104440.0,104430.0,0.70522189]
[1750433329861,0.2711,104440.0,104430.0,0.71922189]
[1750433330417,0.2711,104440.0,104430.0,0.72922189]
[1750433330876,0.2711,104440.0,104430.0,0.76784739]
[1750433334659,0.2711,104440.0,104430.0,0.81784739]
[1750433335539,0.2711,104440.0,104430.0,0.80384739]
[1750433335964,0.2711,104440.0,104430.0,0.81584739]
[1750433336391,0.2711,104440.0,104430.0,0.83184739]
[1750433338497,0.2711,104440.0,104430.0,0.47096739]
[1750433338720,0.2711,104440.0,104430.0,0.45642654]
[1750433338926,0.2711,104440.0,104430.0,0.66058654]
[1750433339128,0.2711,104440.0,104430.0,0.45642654]
[1750433339626,0.2711,104440.0,104430.0,0.47096739]
[1750433339863,0.29821,104440.0,104430.0,0.34394589]
[1750433340054,0.29821,104440.0,104430.0,0.52104104]
[1750433340551,0.2711,104440.0,104430.0,0.35352104]
[1750433340766,0.2711,104440.0,104430.0,0.48304104]
[1750433341200,0.2711,104440.0,104430.0,0.49304104]
[1750433341410,0.2711,104440.0,104430.0,0.49104104]
[1750433341880,0.2711,104440.0,104430.0,0.49504104]
[1750433342570,0.2711,104440.0,104430.0,0.48704104]
[1750433343034,0.2711,104440.0,104430.0,0.49004104]
[1750433343907,0.2711,104440.0,104430.0,0.32252104]
[1750433344127,0.2711,104440.0,104430.0,0.49004104]
[1750433345002,0.3329,104440.0,104430.0,0.49004104]
[1750433345231,0.55312075,104440.0,104430.0,0.20809154]
[1750433345468,0.35236855,104440.0,104430.0,0.40425762]
[1750433345721,0.35236837,104440.0,104430.0,0.40425762]
[1750433345953,0.3329,104440.0,104430.0,0.40425762]
[1750433346179,0.2711,104440.0,104430.0,0.40543762]
[1750433347022,0.28067414,104440.0,104430.0,0.40543762]
[1750433347244,0.2711,104440.0,104430.0,0.40425762]
[1750433347468,0.2711,104440.0,104430.0,0.40543762]
[1750433347682,0.2711,104440.0,104430.0,0.50071655]
[1750433348569,0.2711,104440.0,104430.0,0.53111655]
[1750433353262,0.2711,104440.0,104430.0,0.49953655]
[1750433353518,0.2711,104440.0,104430.0,0.50074655]
[1750433353977,0.2711,104440.0,104430.0,0.53052655]
[1750433355558,0.2711,104440.0,104430.0,0.56302655]
[1750433358064,0.2711,104440.0,104430.0,0.60978655]
[1750433360184,0.2711,104440.0,104430.0,0.57728655]
[1750433360403,0.2711,104440.0,104430.0,0.57724655]
[1750433360622,0.2711,104440.0,104430.0,0.54654655]
[1750433360838,0.2711,104440.0,104430.0,0.33330655]
[1750433361079,0.2711,104440.0,104430.0,0.54525655]
[1750433361312,0.2711,104440.0,104430.0,0.33209655]
[1750433361525,0.39300458,104440.0,104430.0,0.40285762]
[1750433361738,0.40289918,104440.0,104430.0,0.40285762]
[1750433361960,0.3729172,104440.0,104430.0,0.40285762]
[1750433362176,0.38249189,104440.0,104430.0,0.40289762]
[1750433362413,0.3729172,104440.0,104430.0,0.40289762]
[1750433362837,0.38249179,104440.0,104430.0,0.40289762]
[1750433363268,0.38249179,104440.0,104430.0,0.23681762]
[1750433363269,0.38249252,104440.0,104430.0,0.23681762]
[1750433363479,0.38249252,104440.0,104430.0,0.40277762]
[1750433365106,0.37291774,104440.0,104430.0,0.40277762]
[1750433365322,0.34387414,104440.0,104430.0,0.40277762]
[1750433365539,0.35344855,104440.0,104430.0,0.40277762]
[1750433365756,0.37259774,104440.0,104430.0,0.40277762]
[1750433366200,0.36302305,104440.0,104430.0,0.40277762]
[1750433366420,0.37259774,104440.0,104430.0,0.40277762]
[1750433367475,0.5449467,104440.0,104430.0,0.007]
[1750433367701,0.61894138,104440.0,104430.0,0.007]
[1750433367916,5.66894138,104440.0,104430.0,0.007]
[1750433368086,5.66894138,104440.0,104430.0,0.17256]
[1750433368297,5.66894138,104440.0,104430.0,0.007]
[1750433368501,5.66894138,104440.0,104430.0,0.1726]
[1750433369355,5.66894138,104440.0,104430.0,0.007]
[1750433369564,5.76422031,104440.0,104430.0,0.003]
[1750433369763,5.82464116,104440.0,104430.0,0.003]
[1750433369966,5.84730812,104440.0,104430.0,0.003]
[1750433370388,0.20109144,104430.0,104420.0,0.16544]
[1750433370606,0.45606022,104430.0,104420.0,0.16544]
[1750433370828,0.22026291,104420.0,104410.0,0.39530182]
[1750433371059,0.28436291,104420.0,104410.0,0.39539193]
[1750433371282,0.28436291,104420.0,104410.0,0.40496891]
[1750433371283,0.10240498,104420.0,104410.0,0.40496891]
[1750433371505,0.15067816,104420.0,104410.0,0.40496891]
[1750433372135,0.0191502,104430.0,104420.0,0.22026319]
[1750433372365,0.02872562,104430.0,104420.0,0.22026319]
[1750433372598,0.0191502,104430.0,104420.0,0.22026319]
[1750433373092,0.01915011,104430.0,104420.0,0.22026319]
[1750433373341,0.56656506,104440.0,104430.0,0.22024192]
[1750433373342,5.43431673,104440.0,104430.0,0.22024192]
[1750433373584,0.42789327,104440.0,104430.0,0.22024192]
[1750433373797,0.47046805,104440.0,104430.0,0.22024192]
[1750433374215,0.47046805,104440.0,104430.0,0.38544192]
[1750433374416,0.65239133,104440.0,104430.0,0.36629144]
[1750433374640,0.65339133,104440.0,104430.0,0.36629144]
[1750433374865,0.65439133,104440.0,104430.0,0.36629144]
[1750433375132,0.65439133,104440.0,104430.0,0.38544219]
[1750433375338,0.39680141,104440.0,104430.0,0.39501734]
[1750433375759,0.5978737,104440.0,104430.0,0.37586695]
[1750433376402,0.5978737,104440.0,104430.0,0.36629144]
[1750433376633,0.5882992,104440.0,104430.0,0.37586677]
[1750433376846,0.440732,104440.0,104430.0,0.38544192]
[1750433377050,0.63222951,104440.0,104430.0,0.38544192]
[1750433377883,0.63222951,104440.0,104430.0,0.36629144]
[1750433378094,0.63222951,104440.0,104430.0,0.37586695]
[1750433379883,0.63222951,104440.0,104430.0,0.38544228]
[1750433380341,0.63222951,104440.0,104430.0,0.37586695]
[1750433381927,0.61308004,104440.0,104430.0,0.1652]
[1750433382153,0.61308004,104440.0,104430.0,0.35671584]
[1750433382385,0.61308004,104440.0,104430.0,0.1652]
[1750433382623,5.66308004,104440.0,104430.0,0.1652]
[1750433383306,0.19151584,104430.0,104420.0,0.20111088]
[1750433383536,0.26379154,104430.0,104420.0,0.37516731]
[1750433384021,0.26379154,104430.0,104420.0,0.37516749]
[1750433384257,0.26379154,104430.0,104420.0,0.36559088]
[1750433384503,0.33949051,104430.0,104420.0,0.36547088]
[1750433384729,0.26379154,104430.0,104420.0,0.36547088]
[1750433384946,0.26379154,104430.0,104420.0,0.37504749]
[1750433385581,0.29290084,104430.0,104420.0,0.37504749]
[1750433386225,0.20111079,104420.0,104410.0,0.20122017]
[1750433386436,0.31195438,104420.0,104410.0,0.20122017]
[1750433386659,0.31195438,104420.0,104410.0,0.36538017]
[1750433387324,0.31195438,104420.0,104410.0,0.37495752]
[1750433387563,0.31195438,104420.0,104410.0,0.37795752]
[1750433387811,0.31195438,104420.0,104410.0,0.36638017]
[1750433388033,0.31195438,104420.0,104410.0,0.36638008]
[1750433388247,0.31195438,104420.0,104410.0,0.00109011]
[1750433388466,5.36195438,104420.0,104410.0,0.16509011]
[1750433388694,5.36227438,104420.0,104410.0,9.011e-05]
[1750433388918,5.36195438,104420.0,104410.0,0.16409011]
[1750433389343,5.16792265,104420.0,104410.0,0.16409011]
[1750433389553,5.35977683,104420.0,104410.0,0.16409011]
[1750433390218,5.35977683,104420.0,104410.0,9.011e-05]
[1750433390696,5.45505576,104420.0,104410.0,9.011e-05]
[1750433391419,5.51547661,104420.0,104410.0,9.011e-05]
[1750433391896,5.51647661,104420.0,104410.0,9.011e-05]
[1750433392124,5.51747661,104420.0,104410.0,9.011e-05]
[1750433392558,5.54016834,104420.0,104410.0,9.011e-05]
[1750433394183,0.2746475,104390.0,104380.0,0.0001]
[1750433394436,0.62658193,104390.0,104380.0,0.0001]
[1750433395451,0.64212278,104390.0,104380.0,0.0001]
[1750433395632,1.02673142,104390.0,104380.0,0.0001]
[1750433395855,1.04937561,104390.0,104380.0,0.0001]
[1750433396082,6.09937561,104390.0,104380.0,0.0001]
[1750433396300,6.07673142,104390.0,104380.0,0.0001]
[1750433396542,6.10035787,104390.0,104380.0,0.0001]
[1750433396802,6.07773142,104390.0,104380.0,0.0001]
[1750433397626,0.21604862,104380.0,104370.0,0.0001]
[1750433397831,5.5221974,104380.0,104370.0,0.0001]
[1750433398289,5.5509884,104380.0,104370.0,0.0001]
[1750433398762,5.5506684,104380.0,104370.0,0.0011]
[1750433399002,5.55107844,104380.0,104370.0,0.0011]
[1750433399231,5.43084784,104380.0,104370.0,0.0011]
[1750433399460,5.49676784,104380.0,104370.0,0.0011]
[1750433399700,5.45084784,104380.0,104370.0,0.0021]
[1750433399946,5.58346774,104380.0,104370.0,0.0021]
[1750433400159,5.67873759,104380.0,104370.0,0.0021]
[1750433400374,5.74165759,104380.0,104370.0,0.0021]
[1750433401970,5.75619844,104380.0,104370.0,0.0021]
[1750433403376,5.50788367,104380.0,104370.0,0.0021]
[1750433403611,5.70907144,104380.0,104370.0,1e-08]
[1750433403837,5.26970005,104370.0,104360.0,6e-05]
[1750433404063,5.62352883,104370.0,104360.0,6e-05]
[1750433404534,5.21896018,104360.0,104350.0,0.0001]
[1750433404743,5.28107947,104350.0,104340.0,0.0001]
[1750433404954,5.5843584,104350.0,104340.0,0.0001]
[1750433405175,5.67962825,104350.0,104340.0,0.0001]
[1750433405401,5.71286886,104350.0,104340.0,0.0001]
[1750433406282,5.45203171,104350.0,104340.0,0.0001]
[1750433406498,5.38690101,104350.0,104340.0,0.20136509]
[1750433406738,5.37731816,104350.0,104340.0,0.20136509]
[1750433407013,5.40615855,104350.0,104340.0,0.24597905]
[1750433407248,5.40615855,104350.0,104340.0,0.03513]
[1750433407479,5.40615855,104350.0,104340.0,0.0011]
[1750433407716,5.5014284,104350.0,104340.0,0.2023649]
[1750433407946,5.064954,104350.0,104340.0,0.2664949]
[1750433408183,5.064954,104350.0,104340.0,0.28566198]
[1750433408184,0.57166349,104350.0,104340.0,0.28566198]
[1750433408418,0.08124616,104350.0,104340.0,0.28566198]
[1750433408860,0.062081,104350.0,104340.0,0.28566198]
[1750433409096,0.50778157,104360.0,104350.0,0.22165096]
[1750433409336,0.52694471,104360.0,104350.0,0.28595096]
[1750433409559,0.53652728,104360.0,104350.0,0.28595114]
[1750433409781,0.53652728,104360.0,104350.0,0.29553372]
[1750433410014,0.73775379,104360.0,104350.0,0.29553372]
[1750433410242,0.51736323,104360.0,104350.0,0.30511621]
[1750433410473,0.56039598,104360.0,104350.0,0.30511621]
[1750433410698,0.57097801,104360.0,104350.0,0.30511621]
[1750433410952,0.035451,104360.0,104350.0,0.30511621]
[1750433411179,0.035451,104360.0,104350.0,0.46855621]
[1750433411853,0.04503248,104360.0,104350.0,0.46855621]
[1750433412068,0.035451,104360.0,104350.0,0.46855621]
[1750433412284,0.04503248,104360.0,104350.0,0.46855621]
[1750433412496,0.04403248,104360.0,104350.0,0.46855621]
[1750433412950,0.033451,104360.0,104350.0,0.30511621]
[1750433413168,0.23893543,104370.0,104360.0,0.21080808]
[1750433413169,0.2485167,104370.0,104360.0,0.21080808]
[1750433413441,0.29253858,104370.0,104360.0,0.28712965]
[1750433413661,0.04730894,104370.0,104360.0,0.28712965]
[1750433413870,0.07996716,104370.0,104360.0,0.28712965]
[1750433414305,0.2811743,104370.0,104360.0,0.06674]
[1750433414748,0.2771743,104370.0,104360.0,0.06674]
[1750433415388,0.20122633,104360.0,104350.0,0.26528571]
[1750433415613,0.20124571,104350.0,104340.0,0.23340509]
[1750433415847,0.21082856,104350.0,104340.0,0.06414]
[1750433416293,0.20124571,104350.0,104340.0,0.06414]
[1750433416506,0.20124571,104350.0,104340.0,0.0001]
[1750433416735,0.20124571,104350.0,104340.0,0.0031]
[1750433416962,0.19624571,104350.0,104340.0,0.0031]
[1750433417182,5.25422771,104350.0,104340.0,0.0031]
[1750433417822,5.25422771,104350.0,104340.0,0.0041]
[1750433418295,5.20870147,104350.0,104340.0,0.0011]
[1750433418519,5.20870147,104350.0,104340.0,0.00134]
[1750433418989,5.20870147,104350.0,104340.0,0.21218905]
[1750433419200,5.37182147,104350.0,104340.0,0.22177282]
[1750433419657,5.37182147,104350.0,104340.0,0.22277282]
[1750433420110,5.39612408,104350.0,104340.0,0.22277282]
[1750433420984,5.39612408,104350.0,104340.0,0.2323565]
[1750433421864,5.01245466,104360.0,104350.0,0.21082847]
[1750433422076,5.03161844,104360.0,104350.0,0.25425096]
[1750433422339,0.06538578,104370.0,104360.0,0.23121167]
[1750433422573,0.05580522,104370.0,104360.0,0.29581167]
[1750433422794,0.00958056,104370.0,104360.0,0.29581167]
[1750433423002,0.02874214,104370.0,104360.0,0.29581167]
[1750433423458,0.03832316,104370.0,104360.0,0.29581167]
[1750433423907,0.06228696,104370.0,104360.0,0.29581167]
[1750433424128,0.07186807,104370.0,104360.0,0.29581167]
[1750433424354,0.53354482,104370.0,104360.0,0.29581167]
[1750433424572,0.05270585,104370.0,104360.0,0.29581167]
[1750433424794,0.05270594,104370.0,104360.0,0.29681167]
[1750433425246,0.04312538,104370.0,104360.0,0.3920906]
[1750433425712,0.04312547,104370.0,104360.0,0.3920906]
[1750433425932,0.04312547,104370.0,104360.0,0.29681167]
[1750433426201,0.03354482,104370.0,104360.0,0.29681167]
[1750433426425,0.04746371,104380.0,104370.0,0.21078807]
[1750433426655,0.29414014,104380.0,104370.0,0.21202807]
[1750433426870,0.24302092,104380.0,104370.0,0.20244714]
[1750433427105,5.33158358,104380.0,104370.0,0.20120714]
[1750433427545,5.33258358,104380.0,104370.0,0.20120714]
[1750433427760,5.33258358,104380.0,104370.0,0.21078807]
[1750433427971,5.05744632,104380.0,104370.0,0.22160872]
[1750433428234,5.06702624,104380.0,104370.0,0.25360872]
[1750433428460,5.06351424,104380.0,104370.0,0.2536089]
[1750433428717,5.05393405,104380.0,104370.0,0.26318964]
[1750433428928,5.06351415,104380.0,104370.0,0.26318964]
[1750433429154,5.0347744,104380.0,104370.0,0.27277029]
[1750433429371,5.0347744,104380.0,104370.0,0.46541029]
[1750433429372,0.0319014,104380.0,104370.0,0.46541029]
[1750433429612,0.003,104380.0,104370.0,0.46541029]
[1750433430039,0.002,104380.0,104370.0,0.46541029]
[1750433430254,0.03235003,104390.0,104380.0,0.2215876]
[1750433430470,0.5,104390.0,104380.0,0.28722871]
[1750433430678,5.03576225,104390.0,104380.0,0.28722871]
[1750433430889,0.53288925,104390.0,104380.0,0.28722871]
[1750433431107,0.03288925,104390.0,104380.0,0.28722871]
[1750433431322,0.00957863,104390.0,104380.0,0.28722871]
[1750433431555,0.04789096,104400.0,104390.0,0.22032649]
[1750433431787,0.04789096,104400.0,104390.0,0.29434512]
[1750433431788,0.08010306,104400.0,104390.0,0.29434512]
[1750433431999,0.27299383,104400.0,104390.0,0.26560859]
[1750433432216,0.00957909,104390.0,104380.0,0.24414825]
[1750433432467,0.01915836,104390.0,104380.0,0.41628853]
[1750433433341,0.02873772,104390.0,104380.0,0.41628853]
[1750433433551,0.02873736,104390.0,104380.0,0.41628853]
[1750433433784,0.02873681,104390.0,104380.0,0.44668853]
[1750433433999,0.03831608,104390.0,104380.0,0.44668853]
[1750433434432,0.05781773,104390.0,104380.0,0.44668853]
[1750433434640,0.02908092,104390.0,104380.0,0.44668853]
[1750433434857,0.00957863,104390.0,104380.0,0.44668853]
[1750433435068,5.05556198,104400.0,104390.0,0.25186649]
[1750433435290,5.2567114,104400.0,104390.0,0.25186649]
[1750433435511,5.24713286,104400.0,104390.0,0.24228768]
[1750433435723,5.2567114,104400.0,104390.0,0.25186668]
[1750433435953,5.35198125,104400.0,104390.0,0.25186668]
[1750433436425,5.34340308,104400.0,104390.0,0.23270859]
[1750433436644,5.33382463,104400.0,104390.0,0.20240859]
[1750433436870,5.33582463,104400.0,104390.0,0.20240859]
[1750433438380,5.33582463,104400.0,104390.0,0.19282923]
[1750433438596,5.33582463,104400.0,104390.0,0.24448787]
[1750433438807,5.33582463,104400.0,104390.0,0.25406696]
[1750433439022,5.33582463,104400.0,104390.0,0.26364596]
[1750433439242,5.36439725,104400.0,104390.0,0.23490869]
[1750433439673,5.36439725,104400.0,104390.0,0.20240869]
[1750433440522,5.2691274,104400.0,104390.0,0.22156732]
[1750433440746,5.08713478,104400.0,104390.0,0.27258671]
[1750433440981,5.27870566,104400.0,104390.0,0.27258671]
[1750433441189,5.27870566,104400.0,104390.0,0.2630079]
[1750433441453,5.27870566,104400.0,104390.0,0.2210289]
[1750433441891,5.37397551,104400.0,104390.0,0.2627079]
[1750433442102,5.37397551,104400.0,104390.0,0.26270808]
[1750433442534,5.36439725,104400.0,104390.0,0.26270808]
[1750433442959,5.06797798,104400.0,104390.0,0.28342862]
[1750433443202,0.03653236,104400.0,104390.0,0.30258652]
[1750433443416,0.04611017,104400.0,104390.0,0.30258652]
[1750433443853,0.04511017,104400.0,104390.0,0.30258652]
[1750433444095,0.04311017,104400.0,104390.0,0.30258652]
[1750433444319,0.06226624,104400.0,104390.0,0.30258652]
[1750433444756,0.06226615,104400.0,104390.0,0.30258652]
[1750433445204,0.07184441,104400.0,104390.0,0.30258652]
[1750433445488,0.08142277,104400.0,104390.0,0.30258652]
[1750433445938,0.04311017,104400.0,104390.0,0.30258652]
[1750433446151,0.04311007,104400.0,104390.0,0.30258652]
[1750433446381,0.04417,104420.0,104410.0,0.21183713]
[1750433446614,0.02826668,104420.0,104410.0,0.29439118]
[1750433446827,0.03784256,104420.0,104410.0,0.29439118]
[1750433447717,0.03984256,104420.0,104410.0,0.29439118]
[1750433447927,0.05899478,104420.0,104410.0,0.29439118]
[1750433448142,0.06657121,104420.0,104410.0,0.29439118]
[1750433448360,0.05699468,104420.0,104410.0,0.29439118]
[1750433448578,0.028778,104420.0,104410.0,0.29439118]
[1750433449049,5e-05,104420.0,104410.0,0.29439118]
[1750433449292,0.00962597,104420.0,104410.0,0.29439118]
[1750433449729,0.00962588,104420.0,104410.0,0.29439118]
[1750433449956,0.03820246,104420.0,104410.0,0.29439118]
[1750433450176,0.00962588,104420.0,104410.0,0.29439118]
[1750433450405,5e-05,104420.0,104410.0,0.29439118]
[1750433450833,0.00962597,104420.0,104410.0,0.29439118]
[1750433451057,0.01920203,104420.0,104410.0,0.29439118]
[1750433451280,0.01920203,104420.0,104410.0,0.0634]
[1750433451281,0.22988889,104420.0,104410.0,0.0634]
[1750433451523,0.21072759,104400.0,104390.0,0.23246784]
[1750433451913,0.21072759,104400.0,104380.0,0.25301853]
[1750433451914,0.0191579,104390.0,104380.0,0.25301853]
[1750433452141,0.02873717,104390.0,104380.0,0.44627853]
[1750433452363,0.0287369,104390.0,104380.0,0.28431853]
[1750433452598,0.03831617,104390.0,104380.0,0.44627853]
[1750433452823,0.02873681,104390.0,104380.0,0.44627853]
[1750433453084,0.01915589,104400.0,104390.0,0.22432632]
[1750433453302,0.03831233,104400.0,104390.0,0.2663355]
[1750433453521,0.03831233,104400.0,104390.0,0.2623355]
[1750433453740,0.22988385,104400.0,104390.0,0.21187787]
[1750433453959,0.26686317,104400.0,104390.0,0.20116869]
[1750433454399,0.26686317,104400.0,104390.0,0.21074805]
[1750433454616,0.26686317,104400.0,104390.0,0.37266805]
[1750433454831,0.26686317,104400.0,104390.0,0.38337723]
[1750433455046,0.22030586,104400.0,104390.0,0.38224723]
[1750433455257,0.22030586,104400.0,104390.0,0.39295623]
[1750433455491,0.01915589,104400.0,104390.0,0.40253504]
[1750433455724,0.22988367,104400.0,104390.0,0.38337723]
[1750433456198,0.22988367,104400.0,104390.0,0.39295632]
[1750433456663,0.02873425,104400.0,104390.0,0.40253467]
[1750433456889,5.05,104410.0,104400.0,0.2629133]
[1750433457131,0.00957707,104410.0,104400.0,0.26291293]
[1750433457346,0.00957707,104410.0,104400.0,0.29341293]
[1750433457568,0.64740628,104420.0,104410.0,0.21070704]
[1750433457791,0.16835904,104420.0,104410.0,0.22141438]
[1750433458012,0.13958404,104420.0,104410.0,0.39279136]
[1750433458282,0.19937713,104420.0,104410.0,0.39279136]
[1750433458472,0.40048801,104420.0,104410.0,0.38321447]
[1750433458698,0.38133543,104420.0,104410.0,0.36293006]
[1750433458922,0.38133543,104420.0,104410.0,0.37363731]
[1750433459137,0.33721543,104420.0,104410.0,0.37363731]
[1750433459361,0.33721543,104420.0,104410.0,0.36406006]
[1750433459582,0.3180623,104420.0,104410.0,0.36406006]
[1750433459807,0.3094856,104420.0,104410.0,0.1618]
[1750433460042,0.20113015,104410.0,104400.0,0.21072207]
[1750433460278,0.20113015,104410.0,104400.0,0.38202024]
[1750433460743,0.20114914,104400.0,104390.0,0.22328923]
[1750433460991,5.05,104390.0,104380.0,0.25507869]
[1750433461207,5.07873708,104390.0,104380.0,0.44545834]
[1750433461420,0.01915772,104390.0,104380.0,0.44545834]
[1750433461859,0.0287369,104390.0,104380.0,0.44545834]
[1750433462295,0.01915772,104390.0,104380.0,0.44545834]
[1750433462722,0.0287369,104390.0,104380.0,0.44545834]
[1750433462948,0.03831617,104390.0,104380.0,0.44545834]
[1750433463175,0.20114933,104400.0,104390.0,0.21074768]
[1750433463176,0.2107275,104400.0,104390.0,0.21074768]
[1750433463407,5.29472997,104410.0,104400.0,0.20227933]
[1750433463630,5.29472997,104410.0,104390.0,0.23449576]
[1750433463631,5.25114933,104400.0,104390.0,0.23449576]
[1750433463848,0.21072759,104400.0,104390.0,0.1927163]
[1750433464091,0.21072759,104400.0,104390.0,0.21187484]
[1750433464321,0.21072759,104400.0,104390.0,0.20229566]
[1750433465287,0.21072759,104400.0,104390.0,0.21187475]
[1750433465510,0.21072759,104400.0,104390.0,0.20329566]
[1750433465735,0.26479222,104400.0,104390.0,0.19258923]
[1750433465948,0.26479222,104400.0,104390.0,0.20216869]
[1750433466164,0.26479222,104400.0,104390.0,0.21287805]
[1750433466385,0.20114933,104400.0,104390.0,0.22245723]
[1750433468862,0.22028365,104410.0,104400.0,0.22400088]
[1750433469092,5.25114924,104400.0,104390.0,0.001]
[1750433469538,5.31454924,104400.0,104390.0,0.001]
[1750433469767,5.40981909,104400.0,104390.0,0.001]
[1750433470004,0.2011685,104390.0,104380.0,0.00014111]